bitfinex-derivatives/quotes_BTCF0:USTF0_20250416
["timestamp","ask_amount","ask_price","bid_price","bid_amount"]
[1744844671106,0.2246185,84453.0,84452.0,0.51251845]
[1744844672417,0.1932185,84453.0,84452.0,0.51251845]
[1744844673115,0.1932185,84453.0,84452.0,0.54341845]
[1744844677207,0.1622185,84453.0,84452.0,0.54341845]
[1744844680316,0.1622185,84453.0,84452.0,0.39409855]
[1744844681213,0.1622185,84453.0,84452.0,0.42579855]
[1744844681922,0.1622185,84453.0,84452.0,0.54421845]
[1744844684823,0.1622185,84453.0,84452.0,0.42579855]
[1744844686622,0.1622185,84453.0,84452.0,0.54421845]
[1744844691430,0.1622185,84453.0,84452.0,0.42579855]
[1744844691930,0.1622185,84453.0,84452.0,0.06499855]
[1744844693031,0.1622185,84453.0,84452.0,0.06439855]
[1744844693430,0.1622185,84453.0,84452.0,0.03269855]
[1744844693623,0.1184241,84449.0,84448.0,0.0303]
[1744844693934,0.1184241,84449.0,84443.0,0.0327]
[1744844693935,0.1184311,84444.0,84443.0,0.0327]
[1744844694136,0.0692158,84444.0,84437.0,0.3608]
[1744844694337,0.1284395,84438.0,84437.0,0.4792403]
[1744844695038,0.1284395,84438.0,84437.0,0.4793203]
[1744844695237,0.1284395,84438.0,84437.0,0.5110203]
[1744844695940,0.1912395,84438.0,84437.0,0.5110203]
[1744844696637,0.1912395,84438.0,84437.0,0.5130203]
[1744844696929,0.1597395,84438.0,84437.0,0.5445203]
[1744844697123,0.1607395,84438.0,84437.0,0.5445203]
[1744844697830,0.1294395,84438.0,84437.0,0.5445203]
[1744844699637,0.1294395,84438.0,84437.0,0.1837203]
[1744844713450,0.1594395,84438.0,84437.0,0.1522203]
[1744844714951,0.1594395,84438.0,84433.0,0.06431587]
[1744844714952,0.1184493,84431.0,84427.0,0.118454]
[1744844715146,0.1284493,84431.0,84427.0,0.0304]
[1744844715541,0.1184535,84428.0,84427.0,0.0304]
[1744844715845,0.1284535,84428.0,84427.0,0.0304]
[1744844717040,0.1284535,84428.0,84427.0,0.0334]
[1744844717242,0.1294535,84428.0,84427.0,0.0334]
[1744844717439,0.1294535,84428.0,84427.0,0.03348]
[1744844718147,0.1294535,84428.0,84427.0,0.00308]
[1744844718341,0.1294535,84428.0,84427.0,8e-05]
[1744844718547,0.1294535,84428.0,84427.0,0.00208]
[1744844720345,0.1294535,84428.0,84427.0,0.002]
[1744844720846,0.1294535,84428.0,84427.0,0.03338]
[1744844722250,0.1294535,84428.0,84427.0,0.00208]
[1744844722447,0.1294535,84428.0,84427.0,0.002]
[1744844722651,0.0592291,84425.0,84421.0,0.000108]
[1744844722948,0.118469,84417.0,84416.0,0.0331]
[1744844723146,0.118469,84417.0,84412.0,0.0592375]
[1744844723147,0.1184746,84413.0,84412.0,0.0592375]
[1744844723350,0.118476,84412.0,84411.0,0.0331]
[1744844723548,0.192376,84412.0,84411.0,0.0331]
[1744844723955,0.192376,84412.0,84410.0,0.0325]
[1744844723956,0.1184816,84408.0,84407.0,0.00509433]
[1744844724144,0.1284816,84408.0,84407.0,0.03639433]
[1744844724641,0.1284816,84408.0,84407.0,0.00509433]
[1744844724848,0.1919816,84408.0,84407.0,0.00509433]
[1744844725348,0.1919816,84408.0,84407.0,0.00517433]
[1744844725541,0.1919816,84408.0,84407.0,0.00917433]
[1744844725746,0.1919816,84408.0,84407.0,0.12757733]
[1744844725943,0.1590816,84408.0,84407.0,0.12765733]
[1744844726551,0.1600816,84408.0,84407.0,0.37765733]
[1744844726750,0.1777054,84420.0,84419.0,0.1776959]
[1744844726944,0.1877054,84420.0,84419.0,0.1776959]
[1744844727556,0.1877054,84420.0,84419.0,0.2394959]
[1744844727855,0.5485054,84420.0,84419.0,0.2394959]
[1744844728052,0.5495054,84420.0,84419.0,0.1210325]
[1744844728356,0.5495054,84420.0,84419.0,0.1230325]
[1744844730354,0.1887054,84420.0,84419.0,0.1230325]
[1744844730658,0.5495054,84420.0,84419.0,0.1230325]
[1744844737362,0.5803054,84420.0,84419.0,0.1230325]
[1744844738861,0.5803054,84420.0,84419.0,0.0638]
[1744844739062,0.6128054,84420.0,84419.0,0.0326]
[1744844739367,0.1184816,84408.0,84407.0,0.36589433]
[1744844739560,0.1184816,84408.0,84407.0,0.51517733]
[1744844739561,0.1284816,84408.0,84407.0,0.51517733]
[1744844739759,0.1284816,84408.0,84407.0,0.51532313]
[1744844740758,0.1294816,84408.0,84407.0,0.51532313]
[1744844742757,0.1294816,84408.0,84407.0,0.51832313]
[1744844744870,0.1294816,84408.0,84407.0,0.15752313]
[1744844748974,0.1184914,84401.0,84400.0,0.2777359]
[1744844749274,0.4892914,84401.0,84400.0,0.2777359]
[1744844750171,0.5518914,84401.0,84400.0,0.3084359]
[1744844750669,0.5528914,84401.0,84400.0,0.2777359]
[1744844751265,0.5528914,84401.0,84400.0,0.1]
[1744844751474,0.5528914,84401.0,84400.0,0.2184928]
[1744844751870,0.5528914,84401.0,84400.0,0.2194928]
[1744844754179,0.5528914,84401.0,84400.0,0.101]
[1744844754373,0.5528914,84401.0,84397.0,0.0001458]
[1744844754374,0.1184956,84398.0,84397.0,1e-08]
[1744844754674,0.1284956,84398.0,84397.0,1e-08]
[1744844755273,0.1605956,84398.0,84397.0,1e-08]
[1744844755573,0.1615956,84398.0,84397.0,0.00100001]
[1744844757174,0.1615956,84398.0,84397.0,0.00108001]
[1744844757478,0.1185069,84390.0,84389.0,0.000108]
[1744844757780,0.1185111,84387.0,84386.0,0.0001458]
[1744844757979,0.1185167,84383.0,84382.0,0.1185176]
[1744844758280,0.1285167,84383.0,84382.0,0.1185176]
[1744844758479,0.1185181,84382.0,84381.0,0.0050959]
[1744844758674,0.1915181,84382.0,84381.0,0.0050959]
[1744844758876,0.1915181,84382.0,84377.0,0.0001458]
[1744844758877,0.1185237,84378.0,84377.0,0.0001458]
[1744844759174,0.1285237,84378.0,84377.0,0.0001458]
[1744844759368,0.1185265,84376.0,84375.0,0.0313]
[1744844759564,0.1185265,84376.0,84373.0,0.000108]
[1744844759565,0.1185294,84374.0,84373.0,0.000108]
[1744844759773,0.1285294,84374.0,84373.0,0.031408]
[1744844759976,0.1915294,84374.0,84373.0,0.0313]
[1744844760267,0.1915294,84374.0,84373.0,0.03138]
[1744844761468,0.1915294,84374.0,84373.0,0.1499108]
[1744844761673,0.1596294,84374.0,84373.0,0.1499108]
[1744844763472,0.1606294,84374.0,84373.0,0.1499108]
[1744844768178,0.011,84374.0,84373.0,0.1499108]
[1744844768381,0.4114,84391.0,84384.0,0.1185153]
[1744844768582,0.4793139,84385.0,84384.0,0.1185153]
[1744844769283,0.4793139,84385.0,84384.0,0.1814153]
[1744844769487,0.4803139,84385.0,84384.0,0.1814153]
[1744844770984,0.3618,84385.0,84384.0,0.1814153]
[1744844771885,0.001,84385.0,84384.0,0.1814153]
[1744844772076,0.1195139,84385.0,84384.0,0.1814153]
[1744844773285,0.001,84385.0,84384.0,0.1814153]
[1744844774378,0.1195139,84385.0,84384.0,0.1814153]
[1744844781290,0.1524139,84385.0,84384.0,0.1814153]
[1744844783590,0.1524139,84385.0,84384.0,0.1185153]
[1744844783985,0.1185167,84383.0,84382.0,0.0592584]
[1744844784190,0.4793167,84383.0,84382.0,0.0592584]
[1744844784390,0.1185195,84381.0,84380.0,0.1777804]
[1744844784695,0.1185223,84379.0,84378.0,0.000108]
[1744844784991,0.0592639,84377.0,84376.0,0.1185265]
[1744844785382,0.1777918,84377.0,84376.0,0.1185265]
[1744844785584,0.0919639,84377.0,84376.0,0.1185265]
[1744844785780,0.0919639,84377.0,84376.0,0.1514265]
[1744844785989,0.0919639,84377.0,84376.0,0.2146265]
[1744844786194,0.0929639,84377.0,84376.0,0.2146265]
[1744844787086,0.0929639,84377.0,84376.0,0.1837265]
[1744844787687,0.0929639,84377.0,84376.0,0.1514265]
[1744844790194,0.1185308,84373.0,84372.0,0.000108]
[1744844790388,0.4793308,84373.0,84372.0,0.1185322]
[1744844790589,0.4793308,84373.0,84372.0,0.1186122]
[1744844791092,0.5118308,84373.0,84372.0,0.1186122]
[1744844792405,0.5128308,84373.0,84372.0,0.1186122]
[1744844793096,0.5128308,84373.0,84367.0,0.000108]
[1744844793097,0.3943,84373.0,84367.0,0.000108]
[1744844793293,0.1185448,84363.0,84362.0,1e-08]
[1744844793601,0.2371064,84359.0,84358.0,0.0592756]
[1744844793803,0.2471064,84359.0,84358.0,0.0592756]
[1744844794102,0.1185532,84357.0,84356.0,0.118662]
[1744844794302,0.1285532,84357.0,84356.0,0.118662]
[1744844794690,0.1908532,84357.0,84356.0,0.118662]
[1744844796404,0.0428,84357.0,84356.0,0.151362]
[1744844796597,0.011,84357.0,84356.0,0.214262]
[1744844797191,0.011,84357.0,84356.0,0.224262]
[1744844798495,0.0318,84366.0,84365.0,0.118542]
[1744844798898,0.0317,84377.0,84376.0,0.1185265]
[1744844799490,0.1502251,84377.0,84376.0,0.1185265]
[1744844800001,0.0312,84382.0,84375.0,0.031]
[1744844800002,0.11869235,84385.0,84384.0,0.1185153]
[1744844800998,0.00017775,84385.0,84384.0,0.1185153]
[1744844801293,0.11869165,84385.0,84384.0,0.1185153]
[1744844802085,0.00217775,84385.0,84384.0,0.1185153]
[1744844802491,0.03317775,84385.0,84384.0,0.1185153]
[1744844802897,0.03117775,84385.0,84384.0,0.1185153]
[1744844803201,0.15069165,84385.0,84384.0,0.1185153]
[1744844803693,0.15069165,84385.0,84384.0,0.1195153]
[1744844803893,0.15169165,84385.0,84384.0,0.1195153]
[1744844805195,0.15169165,84385.0,84384.0,0.1185153]
[1744844806293,0.15069165,84385.0,84384.0,0.1185153]
[1744844806501,0.15169165,84385.0,84384.0,0.1185153]
[1744844806907,0.03317775,84385.0,84384.0,0.1185153]
[1744844807996,0.15169165,84385.0,84384.0,0.1185153]
[1744844811504,0.15169165,84385.0,84384.0,0.1185953]
[1744844811802,0.15069165,84385.0,84384.0,0.1185953]
[1744844812002,0.15169165,84385.0,84384.0,0.1185953]
[1744844812199,0.15069165,84385.0,84384.0,0.1185953]
[1744844812399,0.15269165,84385.0,84384.0,0.1185953]
[1744844812600,0.15569165,84385.0,84384.0,0.1185953]
[1744844814501,0.15269165,84385.0,84384.0,0.1185953]
[1744844814709,0.15569165,84385.0,84384.0,0.1185953]
[1744844816710,0.15269165,84385.0,84384.0,0.1185953]
[1744844817012,0.15569165,84385.0,84384.0,0.1185953]
[1744844824711,0.15569165,84385.0,84384.0,0.1488953]
[1744844827212,0.15469165,84385.0,84384.0,0.1488953]
[1744844827407,0.15169165,84385.0,84384.0,0.1488953]
[1744844827610,0.15369165,84385.0,84384.0,0.1488953]
[1744844830909,0.03517775,84385.0,84384.0,0.1488953]
[1744844831512,0.00417775,84385.0,84384.0,0.1488953]
[1744844832919,0.12269165,84385.0,84384.0,0.1488953]
[1744844833120,0.15539165,84385.0,84384.0,0.1488953]
[1744844833318,0.03687775,84385.0,84384.0,0.1488953]
[1744844836117,0.00417775,84385.0,84384.0,0.1488953]
[1744844837115,0.00417775,84385.0,84384.0,0.5096953]
[1744844838917,0.0326,84399.0,84398.0,0.1184956]
[1744844839116,0.0592408,84408.0,84395.0,0.0592497]
[1744844839117,0.0308,84409.0,84404.0,0.059243]
[1744844839309,0.1818802,84409.0,84408.0,0.1184816]
[1744844840319,0.1918802,84409.0,84408.0,0.1184816]
[1744844840716,0.1918802,84409.0,84408.0,0.1504816]
[1744844841223,0.41157775,84417.0,84416.0,0.1184704]
[1744844841421,0.059225,84431.0,84428.0,0.1776773]
[1744844841617,0.0592264,84429.0,84428.0,0.2369039]
[1744844842118,8e-05,84429.0,84428.0,0.2369039]
[1744844842521,0.1184521,84429.0,84428.0,0.2369039]
[1744844842724,0.1185321,84429.0,84428.0,0.2369039]
[1744844843132,0.1215321,84429.0,84428.0,0.2379039]
[1744844843422,0.00608,84429.0,84428.0,0.2379039]
[1744844844128,0.1245321,84429.0,84428.0,0.2379039]
[1744844844631,0.1549521,84429.0,84428.0,0.2379039]
[1744844844825,0.1550321,84429.0,84428.0,0.2379039]
[1744844853029,0.5158321,84429.0,84428.0,0.001]
[1744844853333,0.1184634,84421.0,84420.0,0.00017775]
[1744844853831,0.1184634,84421.0,84420.0,0.11864255]
[1744844854033,0.4792634,84421.0,84420.0,0.00017775]
[1744844854531,0.4812634,84421.0,84420.0,0.00017775]
[1744844854731,0.5457634,84421.0,84420.0,0.00025775]
[1744844855328,0.5457634,84421.0,84420.0,0.00125775]
[1744844858436,0.5457634,84421.0,84420.0,0.11972255]
[1744844858942,0.5457634,84421.0,84420.0,0.00125775]
[1744844860750,0.5457634,84421.0,84420.0,0.00117775]
[1744844861450,0.54804245,84421.0,84420.0,0.00117775]
[1744844862052,0.54804245,84421.0,84420.0,0.00267243]
[1744844865839,0.5457634,84421.0,84420.0,0.00117775]
[1744844866347,0.5457634,84421.0,84420.0,0.00267243]
[1744844866745,0.54804245,84421.0,84420.0,0.00267243]
[1744844867457,0.90884245,84421.0,84420.0,0.00267243]
[1744844868250,0.91884245,84421.0,84420.0,0.00267243]
[1744844870849,0.9165634,84421.0,84420.0,0.00117775]
[1744844871245,0.9165634,84421.0,84420.0,0.00267243]
[1744844871451,0.91884245,84421.0,84420.0,0.00267243]
[1744844871851,0.1184872,84404.0,84402.0,0.01]
[1744844872051,0.4792872,84404.0,84403.0,0.0649]
[1744844872260,0.4892872,84404.0,84403.0,0.0649]
[1744844873261,0.4892872,84404.0,84403.0,0.0659]
[1744844873859,0.4892872,84404.0,84403.0,0.1843886]
[1744844874059,0.4902872,84404.0,84403.0,0.1903886]
[1744844874460,0.4902872,84404.0,84403.0,0.1893886]
[1744844874757,0.4902872,84404.0,84403.0,0.0669]
[1744844875946,0.4902872,84404.0,84403.0,0.0988]
[1744844877363,0.4902872,84404.0,84403.0,0.2172886]
[1744844883169,0.4902872,84404.0,84403.0,0.0656]
[1744844883570,0.4902872,84404.0,84403.0,0.0339]
[1744844883967,0.50205137,84404.0,84403.0,0.002]
[1744844884168,0.44280797,84404.0,84395.0,0.00017775]
[1744844884366,0.1284985,84396.0,84395.0,0.11867675]
[1744844884567,0.1284985,84396.0,84395.0,0.15098475]
[1744844884770,0.1897985,84396.0,84395.0,0.15098475]
[1744844885265,0.1594985,84396.0,84395.0,0.15098475]
[1744844885465,0.1594985,84396.0,84395.0,0.15298475]
[1744844885867,0.1284985,84396.0,84395.0,0.15087675]
[1744844886068,0.011,84396.0,84395.0,0.15487675]
[1744844886271,0.011,84396.0,84395.0,0.18637675]
[1744844886574,0.001,84396.0,84395.0,0.18637675]
[1744844886964,0.1194985,84396.0,84395.0,0.18637675]
[1744844890876,0.1505985,84396.0,84395.0,0.18637675]
[1744844891572,0.1505985,84396.0,84395.0,0.06787775]
[1744844891773,0.2129985,84396.0,84395.0,0.06787775]
[1744844891972,0.2129985,84396.0,84395.0,0.06795775]
[1744844892468,0.2129985,84396.0,84395.0,0.00425775]
[1744844892870,0.22480428,84396.0,84395.0,0.00425775]
[1744844893369,0.22480428,84396.0,84395.0,0.00417775]
[1744844893578,0.22480428,84396.0,84395.0,0.00425775]
[1744844893969,0.1185125,84386.0,84385.0,0.0303]
[1744844894872,0.1185125,84386.0,84385.0,0.03928338]
[1744844895071,0.1185125,84386.0,84385.0,0.0313]
[1744844895272,0.2151125,84386.0,84385.0,0.0313]
[1744844896175,0.2161125,84386.0,84385.0,0.06298]
[1744844896366,0.2171125,84386.0,84385.0,0.06298]
[1744844897064,0.2181125,84386.0,84385.0,0.06298]
[1744844897472,0.2181125,84386.0,84385.0,8e-05]
[1744844897864,0.2181125,84386.0,84381.0,0.0376959]
[1744844897865,0.1185181,84382.0,84381.0,0.0050959]
[1744844898066,0.0592628,84377.0,84376.0,0.0001458]
[1744844898378,0.0592628,84377.0,84370.0,0.0305]
[1744844898379,0.1185336,84371.0,84370.0,0.0305]
[1744844898577,0.1185336,84371.0,84370.0,0.0631]
[1744844898969,0.1185336,84371.0,84370.0,0.0305]
[1744844899174,0.1831336,84371.0,84370.0,0.0305]
[1744844899773,0.118535,84370.0,84369.0,0.000108]
[1744844900176,0.183135,84370.0,84369.0,0.000108]
[1744844900983,0.183135,84370.0,84365.0,0.0305]
[1744844900984,0.736,84370.0,84340.0,0.18081706]
[1744844901187,0.1185659,84348.0,84347.0,0.0317]
[1744844901371,0.1285659,84348.0,84347.0,0.0317]
[1744844901686,0.1285659,84348.0,84347.0,0.03178]
[1744844902483,0.1295659,84348.0,84347.0,0.03478]
[1744844902878,0.1295659,84348.0,84347.0,1e-07]
[1744844903181,0.1598659,84348.0,84347.0,1e-07]
[1744844903572,0.1918659,84348.0,84347.0,8.01e-05]
[1744844904180,0.2244659,84348.0,84347.0,8.01e-05]
[1744844904979,0.1185842,84335.0,84334.0,0.0611]
[1744844905376,0.1285842,84335.0,84334.0,0.0611]
[1744844905584,0.1285842,84335.0,84334.0,0.1796856]
[1744844906581,0.1295842,84335.0,84334.0,0.1796856]
[1744844907081,0.1295842,84335.0,84334.0,0.0611]
[1744844907379,0.1619842,84335.0,84334.0,0.0611]
[1744844907579,0.1619842,84335.0,84334.0,0.1796856]
[1744844908278,0.1295842,84335.0,84334.0,0.1796856]
[1744844909587,0.1295842,84335.0,84334.0,0.5404856]
[1744844909785,0.1295842,84335.0,84334.0,0.1796856]
[1744844910386,0.011,84335.0,84334.0,0.1796856]
[1744844910576,0.011,84335.0,84334.0,0.5404856]
[1744844911983,0.0323,84347.0,84334.0,0.5404856]
[1744844911984,0.0592836,84348.0,84342.0,0.1185743]
[1744844912187,0.0592795,84353.0,84352.0,0.0592788]
[1744844912484,0.0303,84355.0,84354.0,0.1185575]
[1744844912678,0.0592754,84359.0,84358.0,0.1185504]
[1744844912877,0.2081297,84359.0,84358.0,0.1185504]
[1744844914284,0.118548,84361.0,84360.0,0.118549]
[1744844914784,0.512148,84361.0,84360.0,0.118549]
[1744844915085,0.1778283,84360.0,84353.0,0.0592794]
[1744844915275,0.1778283,84360.0,84359.0,0.1185504]
[1744844915686,0.059275,84360.0,84359.0,0.1185504]
[1744844916389,0.061275,84360.0,84359.0,0.1185504]
[1744844917181,0.062275,84360.0,84359.0,0.1185504]
[1744844917381,0.064275,84360.0,84359.0,0.1185504]
[1744844919892,0.061275,84360.0,84359.0,0.1185504]
[1744844920090,0.063275,84360.0,84359.0,0.1185504]
[1744844920587,0.002,84360.0,84359.0,0.1185504]
[1744844920789,0.003,84360.0,84359.0,0.1185504]
[1744844921191,0.002,84360.0,84359.0,0.1185504]
[1744844921395,0.122549,84360.0,84359.0,0.1185504]
[1744844921793,0.121549,84360.0,84359.0,0.1195504]
[1744844923905,0.120549,84360.0,84359.0,0.1195504]
[1744844928102,0.151849,84360.0,84359.0,0.1195504]
[1744844929001,0.151849,84360.0,84359.0,0.1507504]
[1744844929204,0.151849,84360.0,84359.0,0.1824504]
[1744844939327,0.151849,84360.0,84359.0,0.1512504]
[1744844940928,0.151849,84360.0,84359.0,0.1195504]
[1744844941227,0.151849,84360.0,84359.0,0.001]
[1744844941632,0.151849,84360.0,84359.0,0.00108]
[1744844942716,0.152849,84360.0,84359.0,0.1196304]
[1744844943129,0.152849,84360.0,84359.0,0.1186304]
[1744844945722,0.0343,84360.0,84359.0,0.1186304]
[1744844946220,0.0343,84360.0,84359.0,0.1491304]
[1744844946418,0.001,84360.0,84359.0,0.1491304]
[1744844946617,0.003,84360.0,84359.0,0.1808304]
[1744844946929,0.00017786,84367.0,84359.0,0.06228]
[1744844947230,0.00017786,84367.0,84366.0,0.1185406]
[1744844947421,0.0313,84372.0,84371.0,0.1185336]
[1744844948527,0.0309,84379.0,84378.0,0.1185237]
[1744844948727,0.1494223,84379.0,84378.0,0.1185237]
[1744844949529,0.1494223,84379.0,84378.0,0.1814237]
[1744844949730,0.03327786,84380.0,84378.0,0.1814237]
[1744844949731,0.03327786,84380.0,84379.0,0.1185223]
[1744844950029,0.03327786,84380.0,84379.0,0.1829223]
[1744844950030,0.00017786,84380.0,84379.0,0.1829223]
[1744844950226,0.005,84384.0,84383.0,0.1185167]
[1744844951536,0.1486055,84391.0,84390.0,0.1185069]
[1744844951722,0.1789055,84391.0,84390.0,0.1185069]
[1744844952332,0.1789055,84391.0,84390.0,0.1829069]
[1744844952922,0.1799055,84391.0,84390.0,0.1829069]
[1744844954835,0.1799055,84391.0,84390.0,0.1500069]
[1744844957646,0.0614,84391.0,84390.0,0.1500069]
[1744844958342,0.1799055,84391.0,84390.0,0.1500069]
[1744844958537,0.0313,84391.0,84390.0,0.1500069]
[1744844959442,0.1498055,84391.0,84390.0,0.1500069]
[1744844959829,0.1810055,84391.0,84390.0,0.1500069]
[1744844960640,0.0625,84391.0,84390.0,0.1500069]
[1744844961135,0.00017786,84392.0,84391.0,0.1185055]
[1744844961338,0.00017786,84392.0,84391.0,0.1790055]
[1744844962743,0.00117786,84392.0,84391.0,0.1790055]
[1744844963131,0.00217786,84392.0,84391.0,0.1790055]
[1744844965047,0.033,84402.0,84401.0,0.1184914]
[1744844965943,0.033,84402.0,84401.0,0.1835914]
[1744844966237,0.037,84402.0,84401.0,0.1835914]
[1744844966639,0.04,84402.0,84401.0,0.1835914]
[1744844966842,0.007,84402.0,84401.0,0.1835914]
[1744844970247,0.007,84402.0,84401.0,0.1954488]
[1744844972245,0.0316,84403.0,84402.0,0.11849]
[1744844972458,0.1184683,84418.0,84411.0,0.0592384]
[1744844972653,0.1184704,84416.0,84413.0,0.1184746]
[1744844972845,0.0309,84415.0,84414.0,0.1184732]
[1744844973244,0.03098,84415.0,84414.0,0.1184732]
[1744844973946,0.09418,84415.0,84414.0,0.1498732]
[1744844974953,0.10218,84415.0,84414.0,0.1498732]
[1744844975157,0.2256518,84415.0,84414.0,0.1508732]
[1744844976046,0.10718,84415.0,84414.0,0.1508732]
[1744844979154,0.2256518,84415.0,84414.0,0.1194732]
[1744844980758,0.2256518,84415.0,84414.0,0.001]
[1744844981354,0.1184844,84406.0,84405.0,8e-05]
[1744844981554,0.0592456,84403.0,84402.0,0.11849]
[1744844982061,0.4200456,84403.0,84402.0,0.11849]
[1744844982662,0.630384,84403.0,84402.0,0.11857]
[1744844983361,0.630384,84403.0,84402.0,8e-05]
[1744844983961,0.633384,84403.0,84402.0,0.00108]
[1744844984261,0.636384,84403.0,84402.0,0.00108]
[1744844984662,0.636384,84403.0,84402.0,0.11957]
[1744844984864,0.636384,84403.0,84402.0,0.00108]
[1744844988869,0.636384,84403.0,84402.0,0.001]
[1744844989165,0.636384,84403.0,84402.0,0.00108]
[1744844991566,0.636384,84403.0,84393.0,0.00017775]
[1744844991567,0.1185013,84394.0,84393.0,0.00017775]
[1744844991759,0.4793013,84394.0,84393.0,0.00017775]
[1744844991964,0.17777,84387.0,84386.0,0.1185117]
[1744844992164,0.53857,84387.0,84386.0,0.1185117]
[1744844992467,0.60087,84387.0,84386.0,0.1185117]
[1744844992965,0.60087,84387.0,84386.0,0.1509117]
[1744844993461,0.60187,84387.0,84386.0,0.1529117]
[1744844994758,0.60187,84387.0,84386.0,0.002]
[1744844995262,0.60187,84387.0,84386.0,0.1205125]
[1744844995765,0.60187,84387.0,84386.0,0.1205925]
[1744844997372,0.60187,84387.0,84386.0,0.1512925]
[1744844997873,0.60187,84387.0,84386.0,0.1205925]
[1744844998376,0.60187,84387.0,84386.0,0.00208]
[1744845000071,0.60187,84387.0,84386.0,0.002]
[1744845000271,0.60187,84387.0,84386.0,0.00208]
[1744845003368,0.60187,84387.0,84386.0,0.1205925]
[1744845004273,0.60187,84387.0,84386.0,0.1528925]
[1744845005478,0.4210561,84387.0,84386.0,0.1528925]
[1744845006171,0.4530561,84387.0,84386.0,0.1528925]
[1744845007881,0.4210561,84387.0,84386.0,0.1528925]
[1744845011774,0.0602561,84387.0,84386.0,0.1528925]
[1744845014978,0.1236561,84387.0,84386.0,0.1528925]
[1744845017497,0.0925561,84387.0,84386.0,0.1528925]
[1744845017696,0.0602561,84387.0,84386.0,0.1528925]
[1744845018996,0.1252561,84387.0,84386.0,0.1528925]
[1744845019201,0.0602561,84387.0,84386.0,0.1528925]
[1744845021295,0.001,84387.0,84386.0,0.1528925]
[1744845021491,0.0592493,84396.0,84395.0,0.1184999]
[1744845022193,0.0592481,84398.0,84397.0,0.0592479]
[1744845022389,0.0592481,84398.0,84397.0,0.1235479]
[1744845022588,0.0592481,84398.0,84397.0,0.0643]
[1744845022787,0.0592481,84398.0,84397.0,0.0325]
[1744845022993,0.0592481,84398.0,84389.0,0.0592537]
[1744845022994,0.1184971,84397.0,84396.0,0.1184982]
[1744845023196,0.1184999,84395.0,84394.0,0.0592506]
[1744845024311,0.1214999,84395.0,84394.0,0.0592506]
[1744845025702,0.1854999,84395.0,84394.0,0.0592506]
[1744845026201,0.1874999,84395.0,84394.0,0.0592506]
[1744845026393,0.1864999,84395.0,84394.0,0.0592506]
[1744845027890,0.1844999,84395.0,84394.0,0.0592506]
[1744845028096,0.1864999,84395.0,84394.0,0.0592506]
[1744845028802,0.1844999,84395.0,84394.0,0.0894506]
[1744845029002,0.1874999,84395.0,84394.0,0.0894506]
[1744845029602,0.1864999,84395.0,84394.0,0.0894506]
[1744845030206,0.1224999,84395.0,84394.0,0.0894506]
[1744845030600,0.1224999,84395.0,84394.0,0.1194506]
[1744845031409,0.1214999,84395.0,84394.0,0.1194506]
[1744845031610,0.1214999,84395.0,84394.0,0.0894506]
[1744845032001,0.1194999,84395.0,84394.0,0.0894506]
[1744845032205,0.1214999,84395.0,84394.0,0.0894506]
[1744845035304,0.1204999,84395.0,84394.0,0.0894506]
[1744845035507,0.1194999,84395.0,84394.0,0.0894506]
[1744845036097,0.1204999,84395.0,84394.0,0.0894506]
[1744845036703,0.1194999,84395.0,84394.0,0.0894506]
[1744845036904,0.1214999,84395.0,84394.0,0.0894506]
[1744845039299,0.1204999,84395.0,84394.0,0.0894506]
[1744845040107,0.1214999,84395.0,84394.0,0.0894506]
[1744845040811,0.1204999,84395.0,84394.0,0.0894506]
[1744845041912,0.1194999,84395.0,84394.0,0.0894506]
[1744845043108,0.00019684,84409.0,84401.0,0.1184914]
[1744845043307,0.03300801,84406.0,84401.0,0.1184914]
[1744845043502,0.0329,84406.0,84401.0,0.1184914]
[1744845043809,0.03298,84406.0,84401.0,0.1184914]
[1744845044713,0.00317775,84402.0,84401.0,0.4802914]
[1744845045015,8e-05,84406.0,84405.0,0.1184858]
[1744845045210,0.00010801,84408.0,84404.0,0.064]
[1744845045405,0.1549339,84418.0,84417.0,0.118469]
[1744845045605,0.15519963,84418.0,84417.0,0.118469]
[1744845045806,0.05949963,84418.0,84417.0,0.118469]
[1744845046011,0.00026573,84418.0,84417.0,0.118469]
[1744845046414,0.00227905,84419.0,84417.0,0.118469]
[1744845046713,0.1245476,84418.0,84417.0,0.183469]
[1744845048013,0.1628476,84418.0,84417.0,0.183469]
[1744845048412,0.1558476,84418.0,84417.0,0.182469]
[1744845048612,0.1608476,84418.0,84417.0,0.183469]
[1744845049520,0.1608476,84418.0,84417.0,0.151669]
[1744845049715,0.1911476,84418.0,84417.0,0.151669]
[1744845050410,0.1911476,84418.0,84417.0,0.119469]
[1744845050813,0.1910676,84418.0,84417.0,0.119469]
[1744845051521,0.194303,84418.0,84417.0,0.119469]
[1744845052121,0.194303,84418.0,84417.0,0.001]
[1744845052606,0.1184788,84410.0,84409.0,0.00017775]
[1744845052915,0.90269159,84410.0,84409.0,1.767e-05]
[1744845053118,0.1185013,84394.0,84393.0,0.1517027]
[1744845053706,0.1185013,84394.0,84393.0,0.1517827]
[1744845053905,0.1803013,84394.0,84393.0,0.1517827]
[1744845055422,0.1853013,84394.0,84393.0,0.1517827]
[1744845056428,0.1853013,84394.0,84393.0,0.1517027]
[1744845057621,0.1823013,84394.0,84393.0,0.1517027]
[1744845057821,0.1843013,84394.0,84393.0,0.1517027]
[1744845058023,0.1823013,84394.0,84393.0,0.1517027]
[1744845058215,0.1833013,84394.0,84393.0,0.1517027]
[1744845058415,0.1813013,84394.0,84393.0,0.1517027]
[1744845058734,0.1523013,84394.0,84393.0,0.1517027]
[1744845059023,0.1215013,84394.0,84393.0,0.1517027]
[1744845059325,0.1215013,84394.0,84393.0,0.1828027]
[1744845060221,0.003,84394.0,84393.0,0.1828027]
[1744845061114,0.1185006,84395.0,84394.0,0.1185013]
[1744845061314,0.1184978,84397.0,84396.0,0.1777442]
[1744845061714,0.1184978,84397.0,84396.0,0.2400442]
[1744845062415,0.1184978,84397.0,84396.0,0.2410442]
[1744845062820,0.1194978,84397.0,84396.0,0.2410442]
[1744845063329,0.1184932,84400.0,84399.0,0.0592465]
[1744845063824,0.1184932,84400.0,84399.0,0.1247465]
[1744845064622,0.1194932,84400.0,84399.0,0.1247465]
[1744845066131,0.1514932,84400.0,84399.0,0.1247465]
[1744845067127,0.5122932,84400.0,84399.0,0.1247465]
[1744845068019,0.001,84400.0,84399.0,0.1247465]
[1744845068329,0.001,84400.0,84399.0,0.4855465]
[1744845068733,8e-05,84407.0,84400.0,0.0592464]
[1744845069028,0.1777189,84413.0,84412.0,0.1184746]
[1744845069228,0.2080189,84413.0,84412.0,0.1184746]
[1744845069429,0.2080189,84413.0,84412.0,0.1505746]
[1744845071329,0.2463189,84413.0,84412.0,0.1515746]